[Event "Late-Titled-Tuesday-Blitz-August-29-2023"]
[Site "Chess.com"]
[Date "2023.08.29"]
[Round "4"]
[White "Chessdreamer2020"]
[Black "Berant"]
[Result "0-1"]
[WhiteElo "2526"]
[BlackElo "2382"]
[TimeControl "180+1"]
[EndTime "14:37:56 PDT"]
[Termination "Berant won by resignation"]

1. e4 {[%clk 0:02:59.6]} 1... c5 {[%clk 0:02:58.3]} 2. Nf3 {[%clk 0:02:59.6]}
2... Nc6 {[%clk 0:02:57]} 3. d4 {[%clk 0:03:00]} 3... cxd4 {[%clk 0:02:56.8]} 4.
Nxd4 {[%clk 0:03:00.2]} 4... e5 {[%clk 0:02:57.2]} 5. Nb5 {[%clk 0:02:59.6]}
5... Nf6 {[%clk 0:02:56.6]} 6. N1c3 {[%clk 0:02:53.5]} 6... d6 {[%clk
0:02:55.2]} 7. Bg5 {[%clk 0:02:53.1]} 7... a6 {[%clk 0:02:54.4]} 8. Na3 {[%clk
0:02:53.4]} 8... b5 {[%clk 0:02:54.1]} 9. Nd5 {[%clk 0:02:53.6]} 9... Be7 {[%clk
0:02:53.9]} 10. Bxf6 {[%clk 0:02:53.6]} 10... Bxf6 {[%clk 0:02:54.8]} 11. c4
{[%clk 0:02:53]} 11... b4 {[%clk 0:02:54.4]} 12. Nc2 {[%clk 0:02:53.4]} 12...
O-O {[%clk 0:02:54.2]} 13. g3 {[%clk 0:02:53.3]} 13... Bg5 {[%clk 0:02:54.3]}
14. Bg2 {[%clk 0:02:47.2]} 14... Rb8 {[%clk 0:02:52.8]} 15. b3 {[%clk
0:02:47.1]} 15... a5 {[%clk 0:02:52.9]} 16. O-O {[%clk 0:02:47.1]} 16... Be6
{[%clk 0:02:46.8]} 17. Qd3 {[%clk 0:02:47.1]} 17... Nd4 {[%clk 0:02:36.9]} 18.
Nxd4 {[%clk 0:02:40.8]} 18... exd4 {[%clk 0:02:14.8]} 19. Qxd4 {[%clk
0:02:39.9]} 19... Bxd5 {[%clk 0:02:12.9]} 20. Qxd5 {[%clk 0:02:40.1]} 20... a4
{[%clk 0:02:06.5]} 21. Rad1 {[%clk 0:02:38.6]} 21... axb3 {[%clk 0:02:06]} 22.
axb3 {[%clk 0:02:37.8]} 22... Be7 {[%clk 0:02:04.8]} 23. Ra1 {[%clk 0:02:26.3]}
23... Qb6 {[%clk 0:02:00.8]} 24. Ra4 {[%clk 0:02:21.6]} 24... Rfc8 {[%clk
0:01:54.1]} 25. Rfa1 {[%clk 0:02:21]} 25... Bf6 {[%clk 0:01:48.8]} 26. R1a2
{[%clk 0:02:21.1]} 26... Qd4 {[%clk 0:01:46]} 27. Qxd4 {[%clk 0:02:16.8]} 27...
Bxd4 {[%clk 0:01:46.3]} 28. Ra6 {[%clk 0:02:14.6]} 28... Bc5 {[%clk 0:01:31.7]}
29. Kf1 {[%clk 0:02:15.1]} 29... Re8 {[%clk 0:01:29.1]} 30. f3 {[%clk
0:02:15.3]} 30... f5 {[%clk 0:01:23.8]} 31. Re2 {[%clk 0:02:02.4]} 31... fxe4
{[%clk 0:01:19.1]} 32. fxe4 {[%clk 0:01:54.3]} 32... Ra8 {[%clk 0:01:15]} 33.
Raa2 {[%clk 0:01:49.5]} 33... Bd4 {[%clk 0:01:08]} 34. Ke1 {[%clk 0:01:48.3]}
34... Ra3 {[%clk 0:00:59.4]} 35. Rxa3 {[%clk 0:01:32.4]} 35... bxa3 {[%clk
0:01:00.3]} 36. Ra2 {[%clk 0:01:23.8]} 36... Bb2 {[%clk 0:01:00.3]} 37. Kd1
{[%clk 0:01:06.6]} 37... Rb8 {[%clk 0:00:58.3]} 38. Kc2 {[%clk 0:01:05.8]} 38...
Rf8 {[%clk 0:00:58.7]} 39. Bh3 {[%clk 0:00:59.1]} 39... Rf2+ {[%clk 0:00:57.4]}
40. Kd3 {[%clk 0:00:59.4]} 40... Kf8 {[%clk 0:00:53.2]} 41. b4 {[%clk
0:00:58.7]} 41... Ke7 {[%clk 0:00:49]} 42. b5 {[%clk 0:00:58.3]} 42... Kd8
{[%clk 0:00:49]} 43. e5 {[%clk 0:00:55.7]} 43... dxe5 {[%clk 0:00:33.1]} 44. c5
{[%clk 0:00:55.6]} 44... Kc7 {[%clk 0:00:30.5]} 45. Bf5 {[%clk 0:00:52]} 45...
Rxf5 {[%clk 0:00:29.1]} 46. Ke4 {[%clk 0:00:50.8]} 46... Rf1 {[%clk 0:00:24.6]}
47. Kd5 {[%clk 0:00:49.1]} 47... Rd1+ {[%clk 0:00:24.5]} 48. Kc4 {[%clk
0:00:49.4]} 48... e4 {[%clk 0:00:24.8]} 0-1

[Event "Late-Titled-Tuesday-Blitz-August-29-2023"]
[Site "Chess.com"]
[Date "2023.08.29"]
[Round "4"]
[White "ShrookWafa"]
[Black "HrvojeZagreb"]
[Result "1-0"]
[WhiteElo "2419"]
[BlackElo "2261"]
[TimeControl "180+1"]
[EndTime "14:38:04 PDT"]
[Termination "ShrookWafa won on time"]

1. e4 {[%clk 0:03:00]} 1... c5 {[%clk 0:02:58.1]} 2. Nf3 {[%clk 0:02:59.9]} 2...
a6 {[%clk 0:02:56.4]} 3. d4 {[%clk 0:02:59.6]} 3... cxd4 {[%clk 0:02:57.3]} 4.
Nxd4 {[%clk 0:02:59.9]} 4... Nf6 {[%clk 0:02:56.8]} 5. Bd3 {[%clk 0:02:59]} 5...
e5 {[%clk 0:02:55.6]} 6. Nb3 {[%clk 0:02:55.8]} 6... d5 {[%clk 0:02:53.9]} 7.
exd5 {[%clk 0:02:52.2]} 7... Qxd5 {[%clk 0:02:49.7]} 8. O-O {[%clk 0:02:51.5]}
8... Nc6 {[%clk 0:02:39.4]} 9. Nc3 {[%clk 0:02:50.7]} 9... Qd6 {[%clk
0:02:27.8]} 10. Qe2 {[%clk 0:02:47.8]} 10... Be7 {[%clk 0:02:26.4]} 11. Be3
{[%clk 0:02:46.2]} 11... Nd4 {[%clk 0:02:11.8]} 12. Bxd4 {[%clk 0:02:44.3]}
12... exd4 {[%clk 0:02:10.8]} 13. Ne4 {[%clk 0:02:44.7]} 13... Nxe4 {[%clk
0:01:21.9]} 14. Qxe4 {[%clk 0:02:44.2]} 14... Be6 {[%clk 0:00:49.2]} 15. Nxd4
{[%clk 0:02:39.5]} 15... Bd5 {[%clk 0:00:44.4]} 16. Qg4 {[%clk 0:02:35.7]} 16...
O-O {[%clk 0:00:36.8]} 17. Nf5 {[%clk 0:02:26.4]} 17... Qf6 {[%clk 0:00:36.6]}
18. Rae1 {[%clk 0:02:25.7]} 18... Bc5 {[%clk 0:00:34.7]} 19. b4 {[%clk
0:02:22.1]} 19... Ba7 {[%clk 0:00:34.4]} 20. c4 {[%clk 0:02:21.5]} 20... Bc6
{[%clk 0:00:33]} 21. c5 {[%clk 0:02:13]} 21... Rfe8 {[%clk 0:00:31.4]} 22. Nd6
{[%clk 0:02:04.7]} 22... Rxe1 {[%clk 0:00:30.9]} 23. Rxe1 {[%clk 0:02:02.5]}
23... Rf8 {[%clk 0:00:19.7]} 24. h3 {[%clk 0:01:47.1]} 24... Bb8 {[%clk
0:00:19.4]} 25. Re3 {[%clk 0:01:45.1]} 25... Bxd6 {[%clk 0:00:17.9]} 26. cxd6
{[%clk 0:01:44.9]} 26... Qxd6 {[%clk 0:00:17]} 27. Rg3 {[%clk 0:01:44.3]} 27...
Qf6 {[%clk 0:00:14.9]} 28. h4 {[%clk 0:01:42.3]} 28... Rd8 {[%clk 0:00:13.7]}
29. h5 {[%clk 0:01:41.4]} 29... Bd7 {[%clk 0:00:11.2]} 30. Qe4 {[%clk
0:01:39.5]} 30... g6 {[%clk 0:00:10.2]} 31. Qxb7 {[%clk 0:01:32.3]} 31... Be6
{[%clk 0:00:08]} 32. Qxa6 {[%clk 0:01:24]} 32... Qa1+ {[%clk 0:00:07]} 33. Kh2
{[%clk 0:01:24]} 33... Qe5 {[%clk 0:00:06.4]} 34. Be2 {[%clk 0:01:15.8]} 34...
Rd2 {[%clk 0:00:04.9]} 35. Bf3 {[%clk 0:01:10.8]} 35... Rd4 {[%clk 0:00:03.2]}
36. Qe2 {[%clk 0:00:50.4]} 36... Qxe2 {[%clk 0:00:01.8]} 37. Bxe2 {[%clk
0:00:50.3]} 37... Rd2 {[%clk 0:00:02.7]} 38. Bf3 {[%clk 0:00:43.5]} 38... Rxf2
{[%clk 0:00:02.3]} 39. a4 {[%clk 0:00:43.1]} 39... Rb2 {[%clk 0:00:02]} 40. b5
{[%clk 0:00:43]} 40... Rb4 {[%clk 0:00:01.9]} 41. Bd1 {[%clk 0:00:42]} 1-0

[Event "Late-Titled-Tuesday-Blitz-August-29-2023"]
[Site "Chess.com"]
[Date "2023.08.29"]
[Round "4"]
[White "Anton_Demchenko"]
[Black "adiosabu"]
[Result "1-0"]
[WhiteElo "2922"]
[BlackElo "2570"]
[TimeControl "180+1"]
[EndTime "14:38:05 PDT"]
[Termination "Anton_Demchenko won on time"]

1. e4 {[%clk 0:02:59.5]} 1... c5 {[%clk 0:02:57.6]} 2. Nf3 {[%clk 0:02:59.2]}
2... Nc6 {[%clk 0:02:58.2]} 3. Bb5 {[%clk 0:02:58.5]} 3... g6 {[%clk 0:02:55.9]}
4. O-O {[%clk 0:02:57.3]} 4... Bg7 {[%clk 0:02:56.1]} 5. d3 {[%clk 0:02:58.1]}
5... Nf6 {[%clk 0:02:52.4]} 6. Nc3 {[%clk 0:02:57.6]} 6... O-O {[%clk
0:02:52.3]} 7. e5 {[%clk 0:02:55.2]} 7... Ne8 {[%clk 0:02:51.9]} 8. Bxc6 {[%clk
0:02:53.4]} 8... dxc6 {[%clk 0:02:51.6]} 9. h3 {[%clk 0:02:53.8]} 9... Nc7
{[%clk 0:02:44.2]} 10. Re1 {[%clk 0:02:53.3]} 10... Ne6 {[%clk 0:02:38.5]} 11.
a4 {[%clk 0:02:52.4]} 11... Rb8 {[%clk 0:02:36.8]} 12. b3 {[%clk 0:02:50]} 12...
b6 {[%clk 0:02:30.7]} 13. Bb2 {[%clk 0:02:45.9]} 13... a5 {[%clk 0:02:30.1]} 14.
Ne4 {[%clk 0:02:44]} 14... b5 {[%clk 0:02:22.5]} 15. Bc3 {[%clk 0:02:39.9]}
15... b4 {[%clk 0:01:54.9]} 16. Bb2 {[%clk 0:02:40]} 16... Qd5 {[%clk
0:01:51.7]} 17. Ned2 {[%clk 0:02:38.3]} 17... Ba6 {[%clk 0:01:46.2]} 18. Qe2
{[%clk 0:02:33.2]} 18... Nd4 {[%clk 0:01:42.5]} 19. Bxd4 {[%clk 0:02:25.2]}
19... cxd4 {[%clk 0:01:43.4]} 20. Nc4 {[%clk 0:01:54.3]} 20... Rfd8 {[%clk
0:01:24.4]} 21. Rad1 {[%clk 0:01:53.1]} 21... Bh6 {[%clk 0:01:21.5]} 22. g3
{[%clk 0:01:46.1]} 22... Qe6 {[%clk 0:01:06.7]} 23. Kg2 {[%clk 0:01:41.6]} 23...
Bxc4 {[%clk 0:01:02.4]} 24. dxc4 {[%clk 0:01:41.5]} 24... c5 {[%clk 0:01:03.3]}
25. Qd3 {[%clk 0:01:37.7]} 25... Qc6 {[%clk 0:01:01.2]} 26. Re2 {[%clk
0:01:31.6]} 26... e6 {[%clk 0:00:58.6]} 27. h4 {[%clk 0:01:30.2]} 27... Kg7
{[%clk 0:00:53.6]} 28. Rh1 {[%clk 0:01:26.7]} 28... Rb7 {[%clk 0:00:49]} 29. h5
{[%clk 0:01:26.3]} 29... Rh8 {[%clk 0:00:41.1]} 30. Kg1 {[%clk 0:01:21.2]} 30...
Rd7 {[%clk 0:00:40.1]} 31. Re4 {[%clk 0:01:19.9]} 31... Kf8 {[%clk 0:00:27.2]}
32. hxg6 {[%clk 0:00:59.5]} 32... hxg6 {[%clk 0:00:26.6]} 33. Reh4 {[%clk
0:01:00.2]} 33... Kg7 {[%clk 0:00:26.7]} 34. Ng5 {[%clk 0:00:57.3]} 34... Qc8
{[%clk 0:00:18.4]} 35. Ne4 {[%clk 0:00:55.2]} 35... Qd8 {[%clk 0:00:16.1]} 36.
f4 {[%clk 0:00:53.4]} 36... Qe7 {[%clk 0:00:15.6]} 37. Kg2 {[%clk 0:00:50.2]}
37... Rdd8 {[%clk 0:00:15.7]} 38. Nf6 {[%clk 0:00:46.5]} 38... Rdf8 {[%clk
0:00:13.2]} 39. Qe4 {[%clk 0:00:44.1]} 39... g5 {[%clk 0:00:13]} 40. Rg4 {[%clk
0:00:39.1]} 1-0

[Event "Late-Titled-Tuesday-Blitz-August-29-2023"]
[Site "Chess.com"]
[Date "2023.08.29"]
[Round "4"]
[White "Fh2411"]
[Black "Jahonas"]
[Result "1-0"]
[WhiteElo "2634"]
[BlackElo "2441"]
[TimeControl "180+1"]
[EndTime "14:38:06 PDT"]
[Termination "Fh2411 won by resignation"]

1. d4 {[%clk 0:02:59.3]} 1... Nf6 {[%clk 0:02:59.3]} 2. c4 {[%clk 0:02:59.2]}
2... e6 {[%clk 0:02:59.6]} 3. Nc3 {[%clk 0:02:59.7]} 3... Bb4 {[%clk 0:02:58.3]}
4. e3 {[%clk 0:02:52.3]} 4... b6 {[%clk 0:02:56.5]} 5. Ne2 {[%clk 0:02:49.8]}
5... Bb7 {[%clk 0:02:56.1]} 6. a3 {[%clk 0:02:50.3]} 6... Be7 {[%clk 0:02:54.9]}
7. Ng3 {[%clk 0:02:34.2]} 7... d5 {[%clk 0:02:52]} 8. cxd5 {[%clk 0:02:28.1]}
8... Nxd5 {[%clk 0:02:50.4]} 9. e4 {[%clk 0:02:21.9]} 9... Nxc3 {[%clk
0:02:46.7]} 10. bxc3 {[%clk 0:02:22.8]} 10... c5 {[%clk 0:02:45.7]} 11. Bb5+
{[%clk 0:02:15.5]} 11... Nd7 {[%clk 0:02:32.4]} 12. d5 {[%clk 0:02:14.4]} 12...
exd5 {[%clk 0:02:27.5]} 13. exd5 {[%clk 0:02:13.5]} 13... O-O {[%clk 0:02:26.9]}
14. O-O {[%clk 0:02:11.9]} 14... Bf6 {[%clk 0:02:25.7]} 15. Bb2 {[%clk
0:02:03.4]} 15... a6 {[%clk 0:02:22.2]} 16. Be2 {[%clk 0:01:59.2]} 16... Ne5
{[%clk 0:02:11.9]} 17. c4 {[%clk 0:01:49.8]} 17... Nf3+ {[%clk 0:01:59.8]} 18.
Bxf3 {[%clk 0:01:49.6]} 18... Bxb2 {[%clk 0:01:59.9]} 19. Ra2 {[%clk 0:01:50.3]}
19... Be5 {[%clk 0:01:56.5]} 20. Ne2 {[%clk 0:01:43.9]} 20... Qd6 {[%clk
0:01:49.4]} 21. g3 {[%clk 0:01:43.6]} 21... Rfe8 {[%clk 0:01:48.1]} 22. Rd2
{[%clk 0:01:40.4]} 22... Rad8 {[%clk 0:01:45.7]} 23. Qb3 {[%clk 0:01:36.7]}
23... g6 {[%clk 0:01:41.6]} 24. Rb1 {[%clk 0:01:31]} 24... b5 {[%clk 0:01:35.1]}
25. cxb5 {[%clk 0:01:27.1]} 25... axb5 {[%clk 0:01:33.4]} 26. Qxb5 {[%clk
0:01:27.1]} 26... Ba6 {[%clk 0:01:32.8]} 27. Qa5 {[%clk 0:01:01.4]} 27... Rb8
{[%clk 0:01:11.6]} 28. Rxb8 {[%clk 0:00:44.7]} 28... Rxb8 {[%clk 0:01:10.6]} 29.
Kg2 {[%clk 0:00:45.4]} 29... Rb3 {[%clk 0:01:04.4]} 30. h4 {[%clk 0:00:29.3]}
30... Qf6 {[%clk 0:00:58.3]} 31. Be4 {[%clk 0:00:25.9]} 31... Bxe2 {[%clk
0:00:38.2]} 32. Rxe2 {[%clk 0:00:26.8]} 32... Bd4 {[%clk 0:00:37]} 33. Qc7
{[%clk 0:00:24.5]} 33... Rxa3 {[%clk 0:00:31.8]} 34. d6 {[%clk 0:00:23.8]} 34...
Be5 {[%clk 0:00:29]} 35. Qc8+ {[%clk 0:00:24]} 35... Kg7 {[%clk 0:00:27.1]} 36.
d7 {[%clk 0:00:24.3]} 1-0

[Event "Late-Titled-Tuesday-Blitz-August-29-2023"]
[Site "Chess.com"]
[Date "2023.08.29"]
[Round "4"]
[White "chessS1r"]
[Black "VladimirKramnik"]
[Result "0-1"]
[WhiteElo "2592"]
[BlackElo "2946"]
[TimeControl "180+1"]
[EndTime "14:38:14 PDT"]
[Termination "VladimirKramnik won by resignation"]

1. d4 {[%clk 0:03:00.9]} 1... d5 {[%clk 0:02:59.3]} 2. c4 {[%clk 0:03:00.2]}
2... e6 {[%clk 0:02:59.4]} 3. Nf3 {[%clk 0:02:59.8]} 3... Nf6 {[%clk 0:02:58.7]}
4. Nc3 {[%clk 0:03:00.5]} 4... c6 {[%clk 0:02:58]} 5. g3 {[%clk 0:02:59.8]} 5...
dxc4 {[%clk 0:02:55]} 6. Bg2 {[%clk 0:02:59.4]} 6... Nbd7 {[%clk 0:02:54.8]} 7.
a4 {[%clk 0:02:54.1]} 7... Bb4 {[%clk 0:02:52.3]} 8. O-O {[%clk 0:02:53.1]} 8...
O-O {[%clk 0:02:52.9]} 9. Nd2 {[%clk 0:02:43.9]} 9... e5 {[%clk 0:02:43]} 10.
Nxc4 {[%clk 0:02:42.7]} 10... exd4 {[%clk 0:02:38.8]} 11. Qxd4 {[%clk
0:02:43.6]} 11... Nc5 {[%clk 0:02:35]} 12. Qxd8 {[%clk 0:02:24.8]} 12... Rxd8
{[%clk 0:02:34.9]} 13. Bg5 {[%clk 0:02:25.6]} 13... Be6 {[%clk 0:02:28.7]} 14.
Ne3 {[%clk 0:01:50.1]} 14... Nb3 {[%clk 0:02:24.2]} 15. Bxf6 {[%clk 0:01:34.7]}
15... gxf6 {[%clk 0:02:22.5]} 16. Rad1 {[%clk 0:01:35.3]} 16... Nd4 {[%clk
0:02:15.1]} 17. Bf3 {[%clk 0:01:28.1]} 17... Bb3 {[%clk 0:02:06.5]} 18. Rc1
{[%clk 0:01:12.8]} 18... a5 {[%clk 0:01:58.8]} 19. Ne4 {[%clk 0:01:03.6]} 19...
Kg7 {[%clk 0:01:52.3]} 20. Nc5 {[%clk 0:00:43.1]} 20... Bxc5 {[%clk 0:01:48.6]}
21. Rxc5 {[%clk 0:00:44]} 21... Bxa4 {[%clk 0:01:41.9]} 22. Ra1 {[%clk
0:00:42.3]} 22... Nb3 {[%clk 0:01:33.6]} 23. Nf5+ {[%clk 0:00:36.4]} 23... Kh8
{[%clk 0:01:27.3]} 24. Rxa4 {[%clk 0:00:36]} 24... Nxc5 {[%clk 0:01:27.2]} 25.
Rh4 {[%clk 0:00:34.7]} 25... Ne6 {[%clk 0:01:15.6]} 26. Nh6 {[%clk 0:00:34.6]}
26... Rd7 {[%clk 0:01:04.8]} 27. Bg4 {[%clk 0:00:34.9]} 27... Re8 {[%clk
0:01:01.3]} 28. Bf5 {[%clk 0:00:33.5]} 28... Rd1+ {[%clk 0:00:53.7]} 29. Kg2
{[%clk 0:00:33.4]} 29... Nf8 {[%clk 0:00:50.9]} 30. Rg4 {[%clk 0:00:19]} 30...
Ng6 {[%clk 0:00:49.7]} 31. Bd3 {[%clk 0:00:16]} 31... Ne5 {[%clk 0:00:39.4]} 32.
Re4 {[%clk 0:00:16]} 32... Kg7 {[%clk 0:00:28.3]} 33. Nf5+ {[%clk 0:00:16.3]}
33... Kf8 {[%clk 0:00:25.4]} 34. Bc2 {[%clk 0:00:16.5]} 34... Rd2 {[%clk
0:00:23.7]} 35. Bb3 {[%clk 0:00:10.5]} 35... Ng6 {[%clk 0:00:21.7]} 36. Rg4
{[%clk 0:00:05.2]} 36... Rexe2 {[%clk 0:00:20.5]} 37. h4 {[%clk 0:00:05]} 37...
Rxf2+ {[%clk 0:00:20.4]} 38. Kg1 {[%clk 0:00:05.9]} 38... Rxf5 {[%clk
0:00:20.5]} 0-1

[Event "Late-Titled-Tuesday-Blitz-August-29-2023"]
[Site "Chess.com"]
[Date "2023.08.29"]
[Round "4"]
[White "jcreyes69"]
[Black "Der_Honigdachs"]
[Result "0-1"]
[WhiteElo "2359"]
[BlackElo "2504"]
[TimeControl "180+1"]
[EndTime "14:38:14 PDT"]
[Termination "Der_Honigdachs won on time"]

1. e4 {[%clk 0:02:51]} 1... e6 {[%clk 0:02:56.4]} 2. d4 {[%clk 0:02:50.7]} 2...
d5 {[%clk 0:02:56.6]} 3. Nc3 {[%clk 0:02:51.4]} 3... Bb4 {[%clk 0:02:55.4]} 4.
Ne2 {[%clk 0:02:50.8]} 4... dxe4 {[%clk 0:02:52]} 5. a3 {[%clk 0:02:50.3]} 5...
Ba5 {[%clk 0:02:47.5]} 6. b4 {[%clk 0:02:46.6]} 6... Bb6 {[%clk 0:02:47.5]} 7.
Nxe4 {[%clk 0:02:47.3]} 7... a5 {[%clk 0:02:46]} 8. b5 {[%clk 0:02:43.5]} 8...
Nf6 {[%clk 0:02:43.4]} 9. Nxf6+ {[%clk 0:02:40]} 9... Qxf6 {[%clk 0:02:42.1]}
10. c4 {[%clk 0:02:40.5]} 10... a4 {[%clk 0:02:35.2]} 11. Bb2 {[%clk 0:02:11.8]}
11... O-O {[%clk 0:02:31.8]} 12. Bc3 {[%clk 0:02:01.2]} 12... Rd8 {[%clk
0:02:27]} 13. Qd2 {[%clk 0:02:00.9]} 13... c5 {[%clk 0:02:08.1]} 14. d5 {[%clk
0:01:11.7]} 14... Qh4 {[%clk 0:01:59.3]} 15. Nf4 {[%clk 0:01:01.6]} 15... Bc7
{[%clk 0:01:47.1]} 16. g3 {[%clk 0:00:53.8]} 16... Bxf4 {[%clk 0:01:46.1]} 17.
gxf4 {[%clk 0:00:54.7]} 17... exd5 {[%clk 0:01:42.5]} 18. cxd5 {[%clk
0:00:54.2]} 18... Nd7 {[%clk 0:01:23.2]} 19. Rg1 {[%clk 0:00:43.1]} 19... Nf6
{[%clk 0:01:21.8]} 20. O-O-O {[%clk 0:00:36.4]} 20... Bg4 {[%clk 0:01:10.7]} 21.
Qb2 {[%clk 0:00:20]} 21... Nxd5 {[%clk 0:00:38.3]} 22. Bxg7 {[%clk 0:00:19.7]}
22... f6 {[%clk 0:00:32]} 23. f3 {[%clk 0:00:16.9]} 23... h5 {[%clk 0:00:23.6]}
24. fxg4 {[%clk 0:00:16]} 24... Kxg7 {[%clk 0:00:23.7]} 25. gxh5+ {[%clk
0:00:15.8]} 25... Kh8 {[%clk 0:00:21.9]} 26. Be2 {[%clk 0:00:10.4]} 26... Qxf4+
{[%clk 0:00:21]} 27. Kb1 {[%clk 0:00:10.7]} 27... Ne3 {[%clk 0:00:14.7]} 28.
Rxd8+ {[%clk 0:00:07.6]} 28... Rxd8 {[%clk 0:00:15.3]} 29. b6 {[%clk 0:00:06.3]}
29... Qe4+ {[%clk 0:00:14.2]} 30. Ka1 {[%clk 0:00:05.7]} 30... Qd4 {[%clk
0:00:10.3]} 31. Qxd4 {[%clk 0:00:04.3]} 31... cxd4 {[%clk 0:00:11]} 32. Bd3
{[%clk 0:00:03]} 32... Rd6 {[%clk 0:00:10.5]} 33. h6 {[%clk 0:00:01.7]} 33... f5
{[%clk 0:00:10.6]} 0-1

[Event "Late-Titled-Tuesday-Blitz-August-29-2023"]
[Site "Chess.com"]
[Date "2023.08.29"]
[Round "4"]
[White "biostatistician"]
[Black "Durarbayli"]
[Result "0-1"]
[WhiteElo "2576"]
[BlackElo "2906"]
[TimeControl "180+1"]
[EndTime "14:38:15 PDT"]
[Termination "Durarbayli won on time"]

1. d4 {[%clk 0:03:00.2]} 1... Nf6 {[%clk 0:02:59.6]} 2. Nf3 {[%clk 0:02:52.7]}
2... e6 {[%clk 0:02:58.7]} 3. c4 {[%clk 0:02:53.1]} 3... c5 {[%clk 0:02:58.8]}
4. e3 {[%clk 0:02:52.9]} 4... d5 {[%clk 0:02:57.7]} 5. Nc3 {[%clk 0:02:52.8]}
5... Nc6 {[%clk 0:02:57.9]} 6. a3 {[%clk 0:02:52]} 6... cxd4 {[%clk 0:02:52.7]}
7. exd4 {[%clk 0:02:51.6]} 7... g6 {[%clk 0:02:53.3]} 8. Bg5 {[%clk 0:02:47.3]}
8... Bg7 {[%clk 0:02:52.8]} 9. cxd5 {[%clk 0:02:46.3]} 9... exd5 {[%clk
0:02:53.2]} 10. Bb5 {[%clk 0:02:44]} 10... O-O {[%clk 0:02:52.7]} 11. O-O {[%clk
0:02:42.4]} 11... Bg4 {[%clk 0:02:51.4]} 12. Bxc6 {[%clk 0:02:38.2]} 12... bxc6
{[%clk 0:02:52.3]} 13. h3 {[%clk 0:02:38.6]} 13... Be6 {[%clk 0:02:50.7]} 14.
Rc1 {[%clk 0:02:33.2]} 14... Qd6 {[%clk 0:02:47.4]} 15. Re1 {[%clk 0:02:25.3]}
15... Rab8 {[%clk 0:02:43.8]} 16. Na4 {[%clk 0:02:23.3]} 16... Ne4 {[%clk
0:02:43]} 17. Be3 {[%clk 0:02:20.6]} 17... Rfc8 {[%clk 0:02:31]} 18. b4 {[%clk
0:02:20.2]} 18... a5 {[%clk 0:02:30]} 19. Bd2 {[%clk 0:02:06.8]} 19... axb4
{[%clk 0:02:17.9]} 20. Bxb4 {[%clk 0:02:06.1]} 20... Qf4 {[%clk 0:02:18]} 21.
Nc5 {[%clk 0:02:01.4]} 21... Bf5 {[%clk 0:02:16.2]} 22. Qe2 {[%clk 0:01:42.5]}
22... Nxc5 {[%clk 0:02:12.9]} 23. Bxc5 {[%clk 0:01:35.6]} 23... Be4 {[%clk
0:02:12.8]} 24. Qe3 {[%clk 0:01:17.1]} 24... Qxe3 {[%clk 0:02:04.2]} 25. fxe3
{[%clk 0:01:08]} 25... Rb2 {[%clk 0:02:04.6]} 26. Rcd1 {[%clk 0:00:53.2]} 26...
Bh6 {[%clk 0:02:01.2]} 27. Rd2 {[%clk 0:00:51.1]} 27... Rb3 {[%clk 0:01:58.8]}
28. Kf2 {[%clk 0:00:49.5]} 28... Re8 {[%clk 0:01:54.8]} 29. Ra2 {[%clk
0:00:27.1]} 29... Bb1 {[%clk 0:01:42.4]} 30. Rae2 {[%clk 0:00:23]} 30... Bd3
{[%clk 0:01:41.9]} 31. Ra2 {[%clk 0:00:22.4]} 31... Bc4 {[%clk 0:01:41.7]} 32.
Raa1 {[%clk 0:00:20.2]} 32... Bxe3+ {[%clk 0:01:33.3]} 33. Kg3 {[%clk
0:00:19.5]} 33... Re4 {[%clk 0:01:34]} 34. a4 {[%clk 0:00:17.2]} 34... Rb2
{[%clk 0:01:30.6]} 35. Kh2 {[%clk 0:00:13]} 35... Be2 {[%clk 0:01:12.2]} 36. Ng1
{[%clk 0:00:09.2]} 36... Ba6 {[%clk 0:01:11.9]} 37. a5 {[%clk 0:00:08.4]} 37...
g5 {[%clk 0:00:53.4]} 38. Nf3 {[%clk 0:00:08.7]} 38... h5 {[%clk 0:00:51.6]} 39.
Ra3 {[%clk 0:00:07.2]} 39... Bf4+ {[%clk 0:00:50.6]} 40. Kg1 {[%clk 0:00:07.5]}
40... Rxe1+ {[%clk 0:00:46.2]} 41. Nxe1 {[%clk 0:00:08.4]} 41... g4 {[%clk
0:00:46.4]} 42. hxg4 {[%clk 0:00:06.6]} 42... hxg4 {[%clk 0:00:47.3]} 43. Ra1
{[%clk 0:00:05.2]} 43... Bg3 {[%clk 0:00:45.2]} 44. Rd1 {[%clk 0:00:04.2]} 44...
f5 {[%clk 0:00:44.1]} 45. Bb6 {[%clk 0:00:02.6]} 45... Kf7 {[%clk 0:00:43.8]}
46. Bc5 {[%clk 0:00:02.5]} 46... Kg6 {[%clk 0:00:42.1]} 47. Bb6 {[%clk
0:00:02.4]} 47... f4 {[%clk 0:00:42.3]} 0-1